fUSD/lending_fUSD_20260606
["ID","MTS","AMOUNT","RATE_DAILY","PERIOD"]
[424230055,1780675855000,-500.0,0.00035069,2]
[424230052,1780675855000,-500.0,0.00035069,2]
[424229999,1780675855000,-500.0,0.00035069,10]
[424230042,1780675855000,-500.0,0.00035069,10]
[424230027,1780675855000,-500.0,0.00035069,10]
[424230054,1780675855000,-500.0,0.00035069,10]
[424230024,1780675855000,-500.0,0.00035069,10]
[424230025,1780675855000,-1302.0,0.00035069,10]
[424229995,1780675855000,-500.0,0.00035069,10]
[424229992,1780675855000,-500.0,0.00035069,2]
[424229994,1780675855000,-1302.0,0.00035069,10]
[424229993,1780675855000,-500.0,0.00035069,10]
[424230005,1780675855000,-1302.0,0.00035069,10]
[424230006,1780675855000,-500.0,0.00035069,10]
[424230004,1780675855000,-500.0,0.00035069,10]
[424230009,1780675855000,-1302.0,0.00035069,10]
[424230011,1780675855000,-500.0,0.00035069,2]
[424230010,1780675855000,-636.18712205,0.00035069,10]
[424230000,1780675855000,-500.0,0.00035069,10]
[424230007,1780675855000,-500.0,0.00035069,2]
[424230008,1780675855000,-500.0,0.00035069,10]
[424229991,1780675855000,-500.0,0.00035069,10]
[424230012,1780675855000,-500.0,0.00035069,10]
[424230002,1780675855000,-500.0,0.00035069,10]
[424230014,1780675855000,-1302.0,0.00035069,10]
[424230020,1780675855000,-500.0,0.00035069,10]
[424230018,1780675855000,-1302.0,0.00035069,10]
[424230019,1780675855000,-500.0,0.00035069,10]
[424230016,1780675855000,-500.0,0.00035069,10]
[424230022,1780675855000,-1302.0,0.00035069,10]
[424230017,1780675855000,-500.0,0.00035069,2]
[424230001,1780675855000,-1302.0,0.00035069,10]
[424230021,1780675855000,-500.0,0.00035069,2]
[424230003,1780675855000,-500.0,0.00035069,2]
[424230023,1780675855000,-500.0,0.00035069,10]
[424230013,1780675855000,-500.0,0.00035069,10]
[424230015,1780675855000,-500.0,0.00035069,10]
[424230093,1780675856000,-500.0,0.00035106,2]
[424230096,1780675856000,-500.0,0.00035106,2]
[424230088,1780675856000,-1307.17433501,0.00035069,10]
[424230083,1780675856000,-500.0,0.00035069,10]
[424230095,1780675856000,-500.0,0.00035106,2]
[424230098,1780675856000,-500.0,0.00035106,2]
[424230090,1780675856000,-300.0,0.000351,10]
[424230091,1780675856000,-265.51807353,0.000351,4]
[424230099,1780675856000,-500.0,0.00035106,2]
[424230097,1780675856000,-853.02,0.00035106,2]
[424230087,1780675856000,-1302.0,0.00035069,10]
[424230089,1780675856000,-183.60827666,0.00035087,15]
[424230107,1780675856000,-511.81,0.00035106,2]
[424230094,1780675856000,-500.0,0.00035106,2]
[424230092,1780675856000,-500.0,0.00035106,2]
[424230101,1780675856000,-500.0,0.00035106,2]
[424230112,1780675856000,-300.0,0.00035275,38]
[424230103,1780675856000,-517.71,0.00035106,2]
[424230108,1780675856000,-150.0,0.0003515,7]
[424230106,1780675856000,-500.0,0.00035106,2]
[424230110,1780675856000,-429.20279892,0.00035221,2]
[424230104,1780675856000,-500.0,0.00035106,2]
[424230102,1780675856000,-500.0,0.00035106,2]
[424230086,1780675856000,-1302.0,0.00035069,10]
[424230109,1780675856000,-3193.4073,0.00035158,2]
[424230100,1780675856000,-500.0,0.00035106,2]
[424230079,1780675856000,-500.0,0.00035069,10]
[424230072,1780675856000,-500.0,0.00035069,10]
[424230082,1780675856000,-503.41003638,0.00035069,10]
[424230111,1780675856000,-150.0,0.00035236,7]
[424230061,1780675856000,-500.0,0.00035069,10]
[424230060,1780675856000,-500.0,0.00035069,10]
[424230057,1780675856000,-1302.0,0.00035069,10]
[424230058,1780675856000,-500.0,0.00035069,2]
[424230056,1780675856000,-500.0,0.00035069,10]
[424230059,1780675856000,-500.0,0.00035069,10]
[424230064,1780675856000,-500.0,0.00035069,10]
[424230074,1780675856000,-500.0,0.00035069,10]
[424230063,1780675856000,-1302.0,0.00035069,10]
[424230067,1780675856000,-500.0,0.00035069,10]
[424230065,1780675856000,-500.0,0.00035069,10]
[424230066,1780675856000,-500.0,0.00035069,10]
[424230068,1780675856000,-500.0,0.00035069,10]
[424230071,1780675856000,-638.68527057,0.00035069,2]
[424230069,1780675856000,-500.0,0.00035069,10]
[424230070,1780675856000,-500.0,0.00035069,10]
[424230073,1780675856000,-500.0,0.00035069,10]
[424230075,1780675856000,-500.0,0.00035069,10]
[424230077,1780675856000,-592.63364862,0.00035069,10]
[424230078,1780675856000,-150.0,0.00035069,2]
[424230085,1780675856000,-150.0,0.00035069,2]
[424230076,1780675856000,-1302.0,0.00035069,10]
[424230080,1780675856000,-1302.0,0.00035069,10]
[424230084,1780675856000,-270.39270819,0.00035069,10]
[424230081,1780675856000,-500.0,0.00035069,10]
[424230105,1780675856000,-500.0,0.00035106,2]
[424230062,1780675856000,-500.0,0.00035069,2]
[424230126,1780675856000,-200.0,0.00035384,2]
[424230145,1780675856000,-200.0,0.00035384,2]
[424230146,1780675856000,-200.0,0.00035384,2]
[424230147,1780675856000,-200.0,0.00035384,2]
[424230148,1780675856000,-200.0,0.00035384,2]
[424230149,1780675856000,-200.0,0.00035384,2]
[424230150,1780675856000,-200.0,0.00035384,2]
[424230151,1780675856000,-200.0,0.00035384,2]
[424230152,1780675856000,-200.0,0.00035384,2]
[424230153,1780675856000,-200.0,0.00035384,2]
[424230154,1780675856000,-200.0,0.00035384,2]
[424230155,1780675856000,-200.0,0.00035384,2]
[424230156,1780675856000,-200.0,0.00035384,2]
[424230157,1780675856000,-200.0,0.00035384,2]
[424230158,1780675856000,-200.0,0.00035384,2]
[424230159,1780675856000,-200.0,0.00035384,2]
[424230160,1780675856000,-200.0,0.00035384,2]
[424230161,1780675856000,-200.0,0.00035384,2]
[424230162,1780675856000,-200.0,0.00035384,2]
[424230163,1780675856000,-200.0,0.00035384,2]
[424230164,1780675856000,-200.0,0.00035384,2]
[424230165,1780675856000,-200.0,0.00035384,2]
[424230168,1780675856000,-200.0,0.00035384,2]
[424230166,1780675856000,-200.0,0.00035384,2]
[424230167,1780675856000,-200.0,0.00035384,2]
[424230169,1780675856000,-200.0,0.00035384,2]
[424230144,1780675856000,-200.0,0.00035384,2]
[424230143,1780675856000,-200.0,0.00035384,2]
[424230113,1780675856000,-3193.4073,0.00035282,2]
[424230141,1780675856000,-200.0,0.00035384,2]
[424230142,1780675856000,-200.0,0.00035384,2]
[424230123,1780675856000,-200.0,0.00035384,2]
[424230125,1780675856000,-200.0,0.00035384,2]
[424230116,1780675856000,-1346.50371723,0.0003534,2]
[424230124,1780675856000,-200.0,0.00035384,2]
[424230114,1780675856000,-1474.0099399,0.00035339,2]
[424230115,1780675856000,-1988.19822733,0.0003534,2]
[424230117,1780675856000,-2583.9751654,0.0003534,2]
[424230122,1780675856000,-200.0,0.00035384,2]
[424230121,1780675856000,-2365.24247978,0.0003534,2]
[424230119,1780675856000,-1448.16544883,0.0003534,2]
[424230120,1780675856000,-1264.2472422,0.0003534,2]
[424230127,1780675856000,-200.0,0.00035384,2]
[424230118,1780675856000,-2989.44208032,0.0003534,2]
[424230129,1780675856000,-200.0,0.00035384,2]
[424230128,1780675856000,-200.0,0.00035384,2]
[424230139,1780675856000,-169.0,0.00035384,2]
[424230138,1780675856000,-200.0,0.00035384,2]
[424230137,1780675856000,-200.0,0.00035384,2]
[424230134,1780675856000,-200.0,0.00035384,2]
[424230136,1780675856000,-200.0,0.00035384,2]
[424230133,1780675856000,-200.0,0.00035384,2]
[424230140,1780675856000,-200.0,0.00035384,2]
[424230132,1780675856000,-200.0,0.00035384,2]
[424230131,1780675856000,-200.0,0.00035384,2]
[424230130,1780675856000,-200.0,0.00035384,2]
[424230135,1780675856000,-200.0,0.00035384,2]
[424230209,1780675857000,-381.0,0.00035496,2]
[424230210,1780675857000,-381.0,0.00035516,2]
[424230208,1780675857000,-381.0,0.00035476,2]
[424230206,1780675857000,-150.0,0.00035467,7]
[424230199,1780675857000,-749.0,0.00035413,30]
[424230204,1780675857000,-164.89,0.0003546,69]
[424230205,1780675857000,-150.0,0.00035467,7]
[424230203,1780675857000,-933.0,0.00035441,2]
[424230202,1780675857000,-6072.0,0.00035441,2]
[424230211,1780675857000,-381.0,0.00035526,2]
[424230207,1780675857000,-150.0,0.00035467,7]
[424230213,1780675857000,-3193.4073,0.00035532,2]
[424230218,1780675857000,-381.0,0.00035548,2]
[424230224,1780675857000,-445.0,0.00035584,2]
[424230219,1780675857000,-381.0,0.00035557,2]
[424230217,1780675857000,-9329.48,0.00035548,7]
[424230215,1780675857000,-6784.62012969,0.00035547,2]
[424230222,1780675857000,-437.0,0.00035572,2]
[424230220,1780675857000,-381.0,0.00035558,2]
[424230221,1780675857000,-381.0,0.00035565,2]
[424230223,1780675857000,-1273.0,0.00035572,2]
[424230214,1780675857000,-381.0,0.00035546,2]
[424230225,1780675857000,-381.0,0.00035586,2]
[424230216,1780675857000,-6337.6,0.00035548,2]
[424230195,1780675857000,-1864.0,0.00035413,30]
[424230212,1780675857000,-381.0,0.00035526,2]
[424230201,1780675857000,-1227.0,0.00035441,2]
[424230186,1780675857000,-3193.4073,0.00035407,2]
[424230197,1780675857000,-394.0,0.00035413,30]
[424230236,1780675857000,-660.71282141,0.00035616,7]
[424230172,1780675857000,-200.0,0.00035384,2]
[424230171,1780675857000,-200.0,0.00035384,2]
[424230173,1780675857000,-200.0,0.00035384,2]
[424230174,1780675857000,-200.0,0.00035384,2]
[424230175,1780675857000,-200.0,0.00035384,2]
[424230176,1780675857000,-200.0,0.00035384,2]
[424230177,1780675857000,-160.0,0.00035384,2]
[424230178,1780675857000,-500.0,0.00035384,2]
[424230179,1780675857000,-500.0,0.00035384,2]
[424230180,1780675857000,-500.0,0.00035384,2]
[424230181,1780675857000,-500.0,0.00035384,2]
[424230194,1780675857000,-282.0,0.00035413,30]
[424230182,1780675857000,-500.0,0.00035384,2]
[424230184,1780675857000,-541.0,0.00035384,2]
[424230185,1780675857000,-445.0,0.00035394,2]
[424230187,1780675857000,-1169.0,0.00035411,30]
[424230188,1780675857000,-284.0,0.00035411,30]
[424230189,1780675857000,-585.0,0.00035413,30]
[424230190,1780675857000,-235.0,0.00035413,30]
[424230191,1780675857000,-1478.0,0.00035413,30]
[424230192,1780675857000,-1472.0,0.00035413,30]
[424230198,1780675857000,-2067.0,0.00035413,30]
[424230196,1780675857000,-395.0,0.00035413,30]
[424230193,1780675857000,-483.0,0.00035413,30]
[424230200,1780675857000,-406.0,0.00035418,30]
[424230183,1780675857000,-500.0,0.00035384,2]
[424230170,1780675857000,-200.0,0.00035384,2]
[424230232,1780675857000,-660.71282141,0.00035616,7]
[424230235,1780675857000,-660.71282141,0.00035616,7]
[424230259,1780675857000,-660.71282141,0.00035616,7]
[424230260,1780675857000,-660.71282141,0.00035616,7]
[424230257,1780675857000,-660.71282141,0.00035616,7]
[424230261,1780675857000,-660.71282141,0.00035616,7]
[424230265,1780675857000,-660.71282141,0.00035616,7]
[424230264,1780675857000,-660.71282141,0.00035616,7]
[424230268,1780675857000,-660.71282141,0.00035616,7]
[424230267,1780675857000,-660.71282141,0.00035616,7]
[424230271,1780675857000,-660.71282141,0.00035616,7]
[424230266,1780675857000,-660.71282141,0.00035616,7]
[424230270,1780675857000,-660.71282141,0.00035616,7]
[424230272,1780675857000,-660.71282141,0.00035616,7]
[424230269,1780675857000,-660.71282141,0.00035616,7]
[424230273,1780675857000,-660.71282141,0.00035616,7]
[424230274,1780675857000,-660.71282141,0.00035616,7]
[424230282,1780675857000,-660.71282141,0.00035616,7]
[424230284,1780675857000,-660.71282141,0.00035616,7]
[424230280,1780675857000,-660.71282141,0.00035616,7]
[424230281,1780675857000,-660.71282141,0.00035616,7]
[424230275,1780675857000,-660.71282141,0.00035616,7]
[424230277,1780675857000,-660.71282141,0.00035616,7]
[424230283,1780675857000,-660.71282141,0.00035616,7]
[424230279,1780675857000,-660.71282141,0.00035616,7]
[424230278,1780675857000,-660.71282141,0.00035616,7]
[424230226,1780675857000,-381.0,0.00035588,2]
[424230256,1780675857000,-660.71282141,0.00035616,7]
[424230258,1780675857000,-660.71282141,0.00035616,7]
[424230276,1780675857000,-660.71282141,0.00035616,7]
[424230253,1780675857000,-660.71282141,0.00035616,7]
[424230255,1780675857000,-660.71282141,0.00035616,7]
[424230227,1780675857000,-184.97115287,0.00035589,120]
[424230231,1780675857000,-660.71282141,0.00035616,7]
[424230228,1780675857000,-445.0,0.00035606,2]
[424230233,1780675857000,-660.71282141,0.00035616,7]
[424230237,1780675857000,-660.71282141,0.00035616,7]
[424230234,1780675857000,-660.71282141,0.00035616,7]
[424230238,1780675857000,-660.71282141,0.00035616,7]
[424230229,1780675857000,-381.0,0.00035607,2]
[424230240,1780675857000,-660.71282141,0.00035616,7]
[424230241,1780675857000,-660.71282141,0.00035616,7]
[424230242,1780675857000,-660.71282141,0.00035616,7]
[424230239,1780675857000,-660.71282141,0.00035616,7]
[424230230,1780675857000,-2000.0,0.00035616,30]
[424230243,1780675857000,-660.71282141,0.00035616,7]
[424230249,1780675857000,-660.71282141,0.00035616,7]
[424230254,1780675857000,-660.71282141,0.00035616,7]
[424230262,1780675857000,-660.71282141,0.00035616,7]
[424230251,1780675857000,-660.71282141,0.00035616,7]
[424230252,1780675857000,-660.71282141,0.00035616,7]
[424230263,1780675857000,-660.71282141,0.00035616,7]
[424230250,1780675857000,-660.71282141,0.00035616,7]
[424230244,1780675857000,-660.71282141,0.00035616,7]
[424230248,1780675857000,-660.71282141,0.00035616,7]
[424230245,1780675857000,-660.71282141,0.00035616,7]
[424230246,1780675857000,-660.71282141,0.00035616,7]
[424230247,1780675857000,-660.71282141,0.00035616,7]
[424230321,1780675858000,-381.0,0.00035639,2]
[424230325,1780675858000,-445.0,0.00035649,2]
[424230320,1780675858000,-539.24,0.00035616,2]
[424230318,1780675858000,-647.10991036,0.00035616,7]
[424230315,1780675858000,-647.10991039,0.00035616,7]
[424230322,1780675858000,-250.0,0.0003564,2]
[424230323,1780675858000,-381.0,0.00035642,2]
[424230317,1780675858000,-647.10991036,0.00035616,7]
[424230313,1780675858000,-647.10991039,0.00035616,7]
[424230319,1780675858000,-1000.0,0.00035616,120]
[424230324,1780675858000,-644.0,0.00035643,3]
[424230330,1780675858000,-385.0,0.00035671,2]
[424230327,1780675858000,-3193.4073,0.00035656,2]
[424230329,1780675858000,-381.0,0.0003567,2]
[424230340,1780675858000,-385.0,0.000357,2]
[424230336,1780675858000,-381.0,0.00035694,2]
[424230331,1780675858000,-381.0,0.00035673,2]
[424230337,1780675858000,-383.0,0.00035696,2]
[424230328,1780675858000,-385.0,0.0003567,2]
[424230332,1780675858000,-385.0,0.00035677,2]
[424230333,1780675858000,-177.55,0.00035678,120]
[424230334,1780675858000,-445.0,0.00035681,2]
[424230341,1780675858000,-383.0,0.00035712,2]
[424230316,1780675858000,-647.10991039,0.00035616,7]
[424230335,1780675858000,-385.0,0.00035692,2]
[424230314,1780675858000,-647.10991039,0.00035616,7]
[424230300,1780675858000,-647.10991039,0.00035616,7]
[424230307,1780675858000,-647.10991039,0.00035616,7]
[424230286,1780675858000,-647.10991039,0.00035616,7]
[424230285,1780675858000,-647.10991039,0.00035616,7]
[424230287,1780675858000,-647.10991039,0.00035616,7]
[424230290,1780675858000,-647.10991039,0.00035616,7]
[424230289,1780675858000,-647.10991039,0.00035616,7]
[424230288,1780675858000,-647.10991039,0.00035616,7]
[424230296,1780675858000,-647.10991039,0.00035616,7]
[424230297,1780675858000,-647.10991039,0.00035616,7]
[424230294,1780675858000,-647.10991039,0.00035616,7]
[424230298,1780675858000,-647.10991039,0.00035616,7]
[424230291,1780675858000,-647.10991039,0.00035616,7]
[424230293,1780675858000,-647.10991039,0.00035616,7]
[424230295,1780675858000,-647.10991039,0.00035616,7]
[424230292,1780675858000,-647.10991039,0.00035616,7]
[424230310,1780675858000,-647.10991039,0.00035616,7]
[424230311,1780675858000,-647.10991039,0.00035616,7]
[424230301,1780675858000,-647.10991039,0.00035616,7]
[424230309,1780675858000,-647.10991039,0.00035616,7]
[424230308,1780675858000,-647.10991039,0.00035616,7]
[424230299,1780675858000,-647.10991039,0.00035616,7]
[424230303,1780675858000,-647.10991039,0.00035616,7]
[424230302,1780675858000,-647.10991039,0.00035616,7]
[424230305,1780675858000,-647.10991039,0.00035616,7]
[424230304,1780675858000,-647.10991039,0.00035616,7]
[424230306,1780675858000,-647.10991039,0.00035616,7]
[424230312,1780675858000,-647.10991039,0.00035616,7]
[424230343,1780675858000,-381.0,0.00035723,2]
[424230338,1780675858000,-383.0,0.000357,2]
[424230346,1780675858000,-445.0,0.00035728,2]
[424230368,1780675858000,-381.0,0.00035788,2]
[424230366,1780675858000,-381.0,0.00035785,2]
[424230376,1780675858000,-445.0,0.00035828,2]
[424230377,1780675858000,-381.0,0.00035832,2]
[424230379,1780675858000,-381.0,0.00035833,2]
[424230381,1780675858000,-381.0,0.00035835,2]
[424230384,1780675858000,-381.0,0.00035844,2]
[424230380,1780675858000,-381.0,0.00035835,2]
[424230382,1780675858000,-381.0,0.00035841,2]
[424230378,1780675858000,-2909.42,0.00035833,120]
[424230387,1780675858000,-381.0,0.00035854,2]
[424230385,1780675858000,-381.0,0.00035844,2]
[424230365,1780675858000,-150.0,0.00035783,7]
[424230388,1780675858000,-381.0,0.00035859,2]
[424230386,1780675858000,-381.0,0.00035851,2]
[424230389,1780675858000,-385.0,0.00035867,2]
[424230390,1780675858000,-381.0,0.00035873,2]
[424230391,1780675858000,-383.0,0.00035874,2]
[424230397,1780675858000,-590.1,0.000359,120]
[424230392,1780675858000,-381.0,0.00035878,2]
[424230398,1780675858000,-164.89,0.000359,98]
[424230396,1780675858000,-160.0,0.000359,15]
[424230394,1780675858000,-383.0,0.00035885,2]
[424230393,1780675858000,-381.0,0.00035881,2]
[424230395,1780675858000,-150.0,0.00035899,2]
[424230342,1780675858000,-381.0,0.00035719,2]
[424230383,1780675858000,-381.0,0.00035842,2]
[424230367,1780675858000,-381.0,0.00035787,2]
[424230326,1780675858000,-381.0,0.00035649,2]
[424230373,1780675858000,-356.78640974,0.00035815,2]
[424230344,1780675858000,-381.0,0.00035725,2]
[424230345,1780675858000,-381.0,0.00035725,2]
[424230347,1780675858000,-381.0,0.00035735,2]
[424230348,1780675858000,-381.0,0.00035735,2]
[424230339,1780675858000,-381.0,0.000357,2]
[424230349,1780675858000,-381.0,0.00035742,2]
[424230351,1780675858000,-385.0,0.00035754,2]
[424230359,1780675858000,-385.0,0.00035765,2]
[424230353,1780675858000,-381.0,0.00035755,2]
[424230375,1780675858000,-381.0,0.00035823,2]
[424230360,1780675858000,-381.0,0.00035766,2]
[424230363,1780675858000,-381.0,0.00035778,2]
[424230354,1780675858000,-381.0,0.00035756,2]
[424230350,1780675858000,-381.0,0.00035752,2]
[424230358,1780675858000,-381.0,0.00035764,2]
[424230361,1780675858000,-1262.79580771,0.00035773,120]
[424230374,1780675858000,-381.0,0.00035816,2]
[424230370,1780675858000,-381.0,0.00035801,2]
[424230372,1780675858000,-381.0,0.00035815,2]
[424230369,1780675858000,-381.0,0.00035796,2]
[424230371,1780675858000,-4854.23,0.00035808,7]
[424230364,1780675858000,-3193.4073,0.00035781,2]
[424230355,1780675858000,-381.0,0.00035757,2]
[424230362,1780675858000,-299.50806145,0.00035773,120]
[424230356,1780675858000,-445.0,0.00035761,2]
[424230357,1780675858000,-385.0,0.00035762,2]
[424230352,1780675858000,-381.0,0.00035755,2]
[424230442,1780675859000,-25000.0,0.00036098,10]
[424230443,1780675859000,-151.0,0.00036098,30]
[424230441,1780675859000,-2037.72,0.00036096,120]
[424230439,1780675859000,-350.0,0.00036068,39]
[424230437,1780675859000,-3193.4073,0.0003603,2]
[424230435,1780675859000,-151.0,0.00036,60]
[424230438,1780675859000,-2534.46,0.00036064,10]
[424230433,1780675859000,-2000.0,0.00036,7]
[424230434,1780675859000,-318.06797243,0.00036,120]
[424230432,1780675859000,-200.07,0.00036,14]
[424230431,1780675859000,-968.09227,0.00036,15]
[424230436,1780675859000,-922.99,0.00036023,60]
[424230447,1780675859000,-150.0,0.000361,7]
[424230460,1780675859000,-3124.064276,0.000361,30]
[424230440,1780675859000,-500.0,0.00036068,120]
[424230445,1780675859000,-1228.5703,0.000361,2]
[424230450,1780675859000,-318.383922,0.000361,15]
[424230448,1780675859000,-318.383922,0.000361,15]
[424230449,1780675859000,-318.383922,0.000361,15]
[424230452,1780675859000,-151.0,0.000361,30]
[424230458,1780675859000,-3124.064276,0.000361,30]
[424230459,1780675859000,-819.648392,0.000361,7]
[424230451,1780675859000,-318.383922,0.000361,15]
[424230454,1780675859000,-38677.79572353,0.000361,2]
[424230461,1780675859000,-819.648392,0.000361,7]
[424230462,1780675859000,-819.648392,0.000361,7]
[424230430,1780675859000,-800.0,0.00036,2]
[424230444,1780675859000,-2002.5809,0.000361,2]
[424230429,1780675859000,-1197.32291669,0.00036,120]
[424230418,1780675859000,-593.93823306,0.00036,120]
[424230427,1780675859000,-159.141872,0.00036,15]
[424230399,1780675859000,-200.0,0.000359,12]
[424230400,1780675859000,-381.0,0.000359,2]
[424230403,1780675859000,-155.16232122,0.0003591,120]
[424230402,1780675859000,-3193.4073,0.00035906,2]
[424230411,1780675859000,-150.0,0.00035951,2]
[424230408,1780675859000,-500.0,0.00035951,2]
[424230404,1780675859000,-150.0,0.00035927,7]
[424230407,1780675859000,-406.08085529,0.00035951,2]
[424230401,1780675859000,-381.0,0.00035901,2]
[424230410,1780675859000,-150.0,0.00035951,2]
[424230406,1780675859000,-503.48646499,0.00035951,2]
[424230405,1780675859000,-600.0,0.00035945,30]
[424230409,1780675859000,-400.0,0.00035951,2]
[424230428,1780675859000,-265.44,0.00036,14]
[424230412,1780675859000,-151.0,0.00035984,14]
[424230415,1780675859000,-200.0,0.00035987,30]
[424230463,1780675859000,-151.0,0.000361,30]
[424230414,1780675859000,-151.0,0.00035987,30]
[424230416,1780675859000,-500.0,0.00035987,30]
[424230417,1780675859000,-245.25068369,0.00036,120]
[424230419,1780675859000,-303.42827789,0.00036,120]
[424230422,1780675859000,-161.91126847,0.00036,120]
[424230420,1780675859000,-231.06087588,0.00036,120]
[424230423,1780675859000,-1665.62857171,0.00036,120]
[424230425,1780675859000,-160.0,0.00036,15]
[424230421,1780675859000,-1103.84396095,0.00036,120]
[424230424,1780675859000,-1538.05721072,0.00036,120]
[424230426,1780675859000,-160.0,0.00036,15]
[424230413,1780675859000,-1050823.2078,0.00035987,30]
[424230456,1780675859000,-3124.064276,0.000361,30]
[424230446,1780675859000,-150.0,0.000361,7]
[424230453,1780675859000,-151.0,0.000361,30]
[424230494,1780675859000,-164.89,0.0003634,114]
[424230499,1780675859000,-1586.25,0.00036355,2]
[424230495,1780675859000,-151.0,0.00036355,2]
[424230497,1780675859000,-151.0,0.00036355,2]
[424230501,1780675859000,-1300.0,0.00036356,60]
[424230500,1780675859000,-151.0,0.00036355,2]
[424230498,1780675859000,-151.0,0.00036355,2]
[424230502,1780675859000,-500.0,0.00036356,60]
[424230503,1780675859000,-500.0,0.00036356,60]
[424230511,1780675859000,-251.48226882,0.00036439,14]
[424230512,1780675859000,-191.02827794,0.00036439,10]
[424230513,1780675859000,-150.0,0.00036439,14]
[424230507,1780675859000,-44014.0,0.000364,30]
[424230514,1780675859000,-165.88679775,0.00036439,14]
[424230515,1780675859000,-1592.0,0.00036445,11]
[424230505,1780675859000,-3368.74,0.00036362,60]
[424230504,1780675859000,-2534.46,0.00036361,10]
[424230506,1780675859000,-434.88,0.00036362,60]
[424230508,1780675859000,-3193.4073,0.00036404,2]
[424230509,1780675859000,-311.76398317,0.00036408,2]
[424230510,1780675859000,-150.0,0.00036417,7]
[424230516,1780675859000,-164.0,0.0003647,11]
[424230522,1780675859000,-1586.25,0.00036519,2]
[424230517,1780675859000,-4854.23,0.00036493,7]
[424230521,1780675859000,-151.0,0.00036519,2]
[424230523,1780675859000,-1586.25,0.00036519,2]
[424230520,1780675859000,-151.0,0.00036519,2]
[424230519,1780675859000,-151.0,0.00036519,2]
[424230455,1780675859000,-3124.064276,0.000361,30]
[424230492,1780675859000,-2321.0,0.00036319,11]
[424230496,1780675859000,-1586.22,0.00036355,2]
[424230518,1780675859000,-1586.25,0.00036519,2]
[424230490,1780675859000,-565.6,0.00036301,7]
[424230491,1780675859000,-1592.0,0.00036319,11]
[424230464,1780675859000,-151.0,0.000361,30]
[424230465,1780675859000,-157.975636,0.000361,30]
[424230466,1780675859000,-151.0,0.00036109,14]
[424230467,1780675859000,-23226.76,0.00036112,10]
[424230471,1780675859000,-150.0,0.00036135,120]
[424230469,1780675859000,-200.0,0.00036122,40]
[424230472,1780675859000,-164.231698,0.00036135,120]
[424230470,1780675859000,-500.0,0.00036122,40]
[424230468,1780675859000,-151.0,0.00036122,40]
[424230473,1780675859000,-150.0,0.00036135,120]
[424230474,1780675859000,-151.0,0.00036139,44]
[424230475,1780675859000,-200.0,0.00036139,44]
[424230476,1780675859000,-500.0,0.00036139,44]
[424230457,1780675859000,-819.648392,0.000361,7]
[424230477,1780675859000,-848.8,0.00036153,30]
[424230478,1780675859000,-3193.4073,0.00036155,2]
[424230489,1780675859000,-3193.4073,0.0003628,2]
[424230487,1780675859000,-156.362598,0.0003626,11]
[424230485,1780675859000,-6337.6,0.00036233,2]
[424230488,1780675859000,-150.0,0.00036273,7]
[424230484,1780675859000,-268.81668809,0.00036226,2]
[424230486,1780675859000,-9329.48,0.00036233,7]
[424230483,1780675859000,-250.0,0.00036226,2]